bitfinex/quotes_BTCUSD_20240729
["timestamp","ask_amount","ask_price","bid_price","bid_amount"]
[1722252375851,0.18800601,69943.0,69942.0,0.282874]
[1722252376068,0.41676301,69943.0,69942.0,0.282874]
[1722252376957,1.37121846,69943.0,69942.0,0.282874]
[1722252377169,1.4147559,69943.0,69942.0,0.282874]
[1722252377422,1.5377559,69943.0,69942.0,0.282874]
[1722252377618,2.0033429,69943.0,69942.0,0.282874]
[1722252377867,2.1033429,69943.0,69942.0,0.18600738]
[1722252378282,0.800926,69919.0,69918.0,0.000924]
[1722252378528,0.89118031,69919.0,69918.0,0.000924]
[1722252378769,0.99144834,69919.0,69918.0,0.000924]
[1722252379255,1.01442119,69919.0,69918.0,0.000924]
[1722252379479,0.66291583,69919.0,69918.0,0.000924]
[1722252379693,0.67291583,69919.0,69918.0,0.000924]
[1722252379828,0.66291583,69919.0,69918.0,0.000924]
[1722252380036,0.68536428,69919.0,69918.0,0.000924]
[1722252380461,0.69636428,69919.0,69918.0,0.000924]
[1722252381413,0.04337428,69919.0,69918.0,0.000924]
[1722252381611,0.03344845,69919.0,69918.0,0.000924]
[1722252381860,0.04342032,69919.0,69918.0,0.000924]
[1722252382031,0.15983832,69919.0,69918.0,0.000924]
[1722252382251,0.19670455,69919.0,69918.0,0.000924]
[1722252382489,0.17773268,69919.0,69918.0,0.000924]
[1722252382697,0.19857726,69919.0,69918.0,0.000924]
[1722252382909,0.08415936,69919.0,69918.0,0.000924]
[1722252383114,0.08420329,69919.0,69918.0,0.000924]
[1722252383525,0.07231468,69919.0,69918.0,0.003924]
[1722252383726,0.03344845,69919.0,69918.0,0.003924]
[1722252384105,0.03344845,69919.0,69918.0,0.000924]
[1722252384597,0.011,69919.0,69918.0,0.001924]
[1722252385367,0.011,69919.0,69918.0,0.116343]
[1722252386132,0.011,69919.0,69918.0,0.345182]
[1722252386355,0.011,69919.0,69918.0,0.718221]
[1722252387086,0.011,69919.0,69918.0,0.717221]
[1722252387314,0.011,69919.0,69918.0,0.95006]
[1722252387985,0.03344545,69919.0,69918.0,0.94606]
[1722252388228,0.03444545,69919.0,69918.0,0.95806]
[1722252388882,0.02244545,69919.0,69918.0,0.99606]
[1722252389299,0.009,69919.0,69918.0,0.99606]
[1722252390092,0.002,69932.0,69928.0,0.114403]
[1722252390291,0.002,69932.0,69929.0,0.1378]
[1722252390629,0.002,69932.0,69929.0,0.252201]
[1722252391308,0.763161,69942.0,69929.0,0.1378]
[1722252391309,0.54292787,69942.0,69929.0,0.1378]
[1722252391514,0.002,69939.0,69933.0,0.114393]
[1722252391711,0.00995949,69938.0,69933.0,0.114393]
[1722252391909,0.00995949,69938.0,69930.0,0.228799]
[1722252392120,0.001,69932.0,69931.0,0.343194]
[1722252392456,0.002,69936.0,69931.0,0.228796]
[1722252392661,0.002,69936.0,69934.0,0.114392]
[1722252393063,0.002,69940.0,69937.0,0.114388]
[1722252393272,0.007,69938.0,69937.0,0.114388]
[1722252393702,0.002,69940.0,69935.0,0.228783]
[1722252393907,0.004,69936.0,69935.0,0.343174]
[1722252394106,0.004,69936.0,69935.0,0.571957]
[1722252394579,0.004,69936.0,69935.0,0.714657]
[1722252395159,0.005,69936.0,69935.0,0.714657]
[1722252395374,0.001,69936.0,69935.0,0.485874]
[1722252395578,0.001,69936.0,69935.0,0.257091]
[1722252395780,0.002,69937.0,69936.0,0.11439]
[1722252396324,0.002,69938.0,69937.0,0.114388]
[1722252396524,0.00084,69943.0,69939.0,0.114385]
[1722252396525,0.002,69940.0,69939.0,0.114385]
[1722252396726,0.00084,69943.0,69941.0,0.114381]
[1722252397659,0.00284,69943.0,69941.0,0.114381]
[1722252398240,0.02528036,69943.0,69941.0,0.114381]
[1722252398441,0.02528036,69943.0,69941.0,0.343145]
[1722252398442,0.002,69942.0,69941.0,0.343145]
[1722252398669,0.02328036,69943.0,69942.0,0.11438]
[1722252399072,0.02328036,69943.0,69939.0,0.228769]
[1722252399073,0.02528036,69943.0,69941.0,0.114382]
[1722252399279,0.03128036,69943.0,69941.0,0.114382]
[1722252399510,0.03128036,69943.0,69942.0,0.11438]
[1722252399511,0.02928036,69943.0,69942.0,0.11438]
[1722252400098,0.02328036,69943.0,69942.0,0.11438]
[1722252400529,0.02328036,69943.0,69942.0,0.10938]
[1722252401211,0.02328036,69943.0,69942.0,0.33814]
[1722252401641,0.02328036,69943.0,69942.0,0.48094]
[1722252401819,0.02328036,69943.0,69942.0,0.7097]
[1722252402384,0.02928036,69943.0,69942.0,0.7097]
[1722252403369,0.02928036,69943.0,69942.0,0.7157]
[1722252403545,0.02928036,69943.0,69942.0,0.94446]
[1722252403752,0.02928036,69943.0,69942.0,0.7157]
[1722252403958,0.02928036,69943.0,69942.0,0.94446]
[1722252404167,0.02928036,69943.0,69942.0,0.93846]
[1722252404752,0.03028036,69943.0,69942.0,0.95146]
[1722252404956,0.03028036,69943.0,69942.0,0.7227]
[1722252405728,0.03028036,69943.0,69942.0,0.95146]
[1722252406174,0.02428036,69943.0,69942.0,0.95146]
[1722252407501,0.02428036,69943.0,69942.0,0.95246]
[1722252408174,0.02428036,69943.0,69942.0,0.7237]
[1722252408620,0.02428036,69943.0,69942.0,0.95246]
[1722252411904,0.02428036,69943.0,69942.0,0.7237]
[1722252413084,0.00184,69943.0,69942.0,0.7237]
[1722252413541,0.00184,69943.0,69942.0,0.95246]
[1722252414707,0.00184,69943.0,69942.0,1.20916]
[1722252414947,0.00184,69943.0,69942.0,1.15916]
[1722252416102,0.02427869,69943.0,69942.0,1.15916]
[1722252417027,0.00184,69943.0,69942.0,1.15916]
[1722252420461,0.02427876,69943.0,69942.0,0.9304]
[1722252420918,0.00184,69943.0,69942.0,1.15916]
[1722252421142,0.00184,69943.0,69942.0,0.9304]
[1722252421612,0.00184,69943.0,69942.0,1.15916]
[1722252422345,0.00184,69943.0,69942.0,0.9304]
[1722252423031,0.00184,69943.0,69942.0,0.55884]
[1722252423260,0.00184,69943.0,69942.0,0.35214]
[1722252426386,0.00184,69943.0,69942.0,0.5809]
[1722252427621,0.0242791,69943.0,69942.0,0.5809]
[1722252427860,0.1640791,69943.0,69942.0,0.12338]
[1722252429017,0.18949503,69943.0,69942.0,0.014]
[1722252429264,0.3282627,69943.0,69942.0,0.014]
[1722252429492,0.1914456,69943.0,69942.0,0.014]
[1722252429703,0.1929998,69943.0,69942.0,0.014]
[1722252429911,0.19300061,69943.0,69942.0,0.014]
[1722252430114,0.19144641,69943.0,69942.0,0.014]
[1722252430322,0.19300061,69943.0,69942.0,0.014]
[1722252431589,0.1764987,69943.0,69942.0,0.014]
[1722252431801,0.1749445,69943.0,69942.0,0.014]
[1722252432009,0.0979445,69943.0,69942.0,0.014]
[1722252432211,0.0979445,69943.0,69942.0,0.12838]
[1722252432412,0.12038532,69943.0,69942.0,0.12838]
[1722252433081,0.02422967,69943.0,69942.0,0.35714]
[1722252433297,0.03314387,69943.0,69942.0,0.35714]
[1722252433709,0.03314394,69943.0,69942.0,0.35714]
[1722252434326,0.03314394,69943.0,69942.0,0.5859]
[1722252434327,0.02422967,69943.0,69942.0,0.5859]
[1722252434528,0.00184,69943.0,69942.0,0.5859]
[1722252434653,0.00184,69943.0,69942.0,0.35714]
[1722252436038,0.00184,69943.0,69942.0,0.5859]
[1722252436456,0.00184,69943.0,69942.0,0.95916]
[1722252436625,0.00184,69943.0,69942.0,0.7304]
[1722252436822,0.00184,69943.0,69942.0,0.95916]
[1722252437022,0.00184,69943.0,69942.0,0.7304]
[1722252438627,0.00184,69943.0,69942.0,0.5859]
[1722252440058,0.00184,69943.0,69942.0,0.81466]
[1722252440236,0.00184,69943.0,69942.0,0.5859]
[1722252440452,0.02427822,69943.0,69942.0,0.81466]
[1722252440650,0.00184,69943.0,69942.0,0.5859]
[1722252442953,0.00184,69943.0,69942.0,0.586824]
[1722252443652,0.02427792,69943.0,69942.0,0.815584]
[1722252444059,0.02427792,69943.0,69942.0,0.586824]
[1722252444401,0.08987792,69943.0,69942.0,0.358064]
[1722252444605,0.02427792,69943.0,69942.0,0.358064]
[1722252444993,0.00184,69943.0,69942.0,0.358064]
[1722252446052,0.00384,69943.0,69942.0,0.129304]
[1722252446301,0.00184,69943.0,69942.0,0.358064]
[1722252446773,0.16261647,69943.0,69942.0,0.014924]
[1722252446975,0.28862147,69943.0,69942.0,0.014924]
[1722252447793,0.51893267,69943.0,69942.0,0.014924]
[1722252447996,0.51793267,69943.0,69942.0,0.001924]
[1722252448415,0.53881965,69943.0,69942.0,0.001924]
[1722252448627,0.74289515,69943.0,69942.0,0.001924]
[1722252448831,0.63569104,69943.0,69942.0,0.001924]
[1722252449032,0.40693404,69943.0,69942.0,0.001924]
[1722252449238,0.40831294,69943.0,69942.0,0.001924]
[1722252449435,0.49269057,69943.0,69942.0,0.000924]
[1722252449631,0.40693494,69943.0,69942.0,0.000924]
[1722252449879,0.49868016,69943.0,69942.0,0.001924]
[1722252450461,0.72743716,69943.0,69942.0,0.001924]
[1722252450649,0.72743716,69943.0,69942.0,0.007924]
[1722252451645,0.41293494,69943.0,69942.0,0.007924]
[1722252451819,0.41448914,69943.0,69942.0,0.007924]
[1722252452023,0.31606355,69943.0,69942.0,0.007924]
[1722252452433,0.31761775,69943.0,69942.0,0.007924]
[1722252453199,0.3176179,69943.0,69942.0,0.007924]
[1722252453797,0.3160637,69943.0,69942.0,0.007924]
[1722252454004,0.39870598,69943.0,69942.0,0.007924]
[1722252455028,0.38979097,69943.0,69942.0,0.007924]
[1722252455190,0.39870597,69943.0,69942.0,0.007924]
[1722252455394,0.62746297,69943.0,69942.0,0.007924]
[1722252456008,0.85621997,69943.0,69942.0,0.007924]
[1722252456380,1.13497697,69943.0,69942.0,0.007924]
[1722252456588,1.24208791,69943.0,69942.0,0.007924]
[1722252456792,1.11253579,69943.0,69942.0,0.007924]
[1722252457261,0.52237951,69943.0,69942.0,0.007924]
[1722252457411,0.60806612,69943.0,69942.0,0.007924]
[1722252458275,0.60890115,69943.0,69942.0,0.007924]
[1722252458470,0.60806612,69943.0,69942.0,0.007924]
[1722252458720,0.60894257,69943.0,69942.0,0.007924]
[1722252458896,0.60805335,69943.0,69942.0,0.007924]
[1722252459430,0.652096,69943.0,69942.0,0.007924]
[1722252459833,0.56642254,69943.0,69942.0,0.007924]
[1722252459998,0.63796609,69943.0,69942.0,0.007924]
[1722252460932,0.66040819,69943.0,69942.0,0.007924]
[1722252461515,0.63796609,69943.0,69942.0,0.007924]
[1722252462129,0.62905071,69943.0,69942.0,0.007924]
[1722252462334,0.33766541,69943.0,69942.0,0.007924]
[1722252462530,0.56642241,69943.0,69942.0,0.007924]
[1722252462731,0.55750716,69943.0,69942.0,0.007924]
[1722252462935,0.56642222,69943.0,69942.0,0.007924]
[1722252464007,0.17924457,69943.0,69942.0,0.007924]
[1722252464213,0.29362257,69943.0,69942.0,0.007924]
[1722252464651,0.52237957,69943.0,69942.0,0.007924]
[1722252464840,0.54482148,69943.0,69942.0,0.007924]
[1722252465245,0.17924457,69943.0,69942.0,0.007924]
[1722252465625,0.10014404,69943.0,69942.0,0.007924]
[1722252467849,0.07775453,69943.0,69942.0,0.007924]
[1722252468054,0.07775421,69943.0,69942.0,0.007924]
[1722252468257,0.10014492,69943.0,69942.0,0.007924]
[1722252468642,0.1225865,69943.0,69942.0,0.007924]
[1722252468850,0.17794703,69943.0,69942.0,0.007924]
[1722252470744,0.1225865,69943.0,69942.0,0.007924]
[1722252471898,0.12258673,69943.0,69942.0,0.007924]
[1722252472346,0.11367215,69943.0,69942.0,0.007924]
[1722252472576,0.1225869,69943.0,69942.0,0.007924]
[1722252475389,0.06058692,69943.0,69942.0,0.154924]
[1722252475604,0.06258692,69943.0,69942.0,0.154924]
[1722252475809,0.04019635,69943.0,69942.0,0.154924]
[1722252476004,0.06258634,69943.0,69942.0,0.154924]
[1722252476442,0.04014476,69943.0,69942.0,0.154924]
[1722252477429,0.04014476,69943.0,69942.0,0.269304]
[1722252477831,0.04014476,69943.0,69942.0,0.154924]
[1722252478039,0.03814476,69943.0,69942.0,0.154924]
[1722252478213,0.04014476,69943.0,69942.0,0.269304]
[1722252478420,0.04014369,69943.0,69942.0,0.269304]
[1722252478625,0.0177537,69943.0,69942.0,0.269304]
[1722252478840,0.04014253,69943.0,69942.0,0.269304]
[1722252479039,0.04014253,69943.0,69942.0,0.154924]
[1722252479412,0.0625823,69943.0,69942.0,0.154924]
[1722252480609,0.0625823,69943.0,69942.0,0.089724]
[1722252480813,0.0625823,69943.0,69942.0,0.007924]
[1722252481018,0.03122883,69943.0,69942.0,0.007924]
[1722252481217,0.04014282,69943.0,69942.0,0.007924]
[1722252481626,0.03122883,69943.0,69942.0,0.007924]
[1722252481831,0.04014293,69943.0,69942.0,0.007924]
[1722252482941,0.03122883,69943.0,69942.0,0.007924]
[1722252483298,0.04014258,69943.0,69942.0,0.007924]
[1722252483494,0.04014258,69943.0,69942.0,0.122304]
[1722252483694,0.04014264,69943.0,69942.0,0.122304]
[1722252483914,0.04014264,69943.0,69942.0,0.007924]
[1722252484307,0.06258241,69943.0,69942.0,0.007924]
[1722252485646,0.03122883,69943.0,69942.0,0.007924]
[1722252486093,0.04014259,69943.0,69942.0,0.007924]
[1722252486718,0.04014259,69943.0,69942.0,0.122304]
[1722252487263,0.03122883,69943.0,69942.0,0.122304]
[1722252487672,0.04014262,69943.0,69942.0,9.122304]
[1722252487879,0.00884,69943.0,69942.0,9.122304]
[1722252488080,0.00684,69943.0,69942.0,9.351064]
[1722252488676,0.00684,69943.0,69942.0,9.122304]
[1722252489015,0.00884,69943.0,69942.0,9.122304]
[1722252489189,0.03127925,69943.0,69942.0,9.122304]
[1722252489817,0.03127925,69943.0,69942.0,9.123304]
[1722252490047,0.02927925,69943.0,69942.0,9.008924]
[1722252490253,0.06258154,69943.0,69942.0,9.002924]
[1722252490653,0.0625819,69943.0,69942.0,9.014924]
[1722252491176,0.06258191,69943.0,69942.0,9.129304]
[1722252491779,0.04014266,69943.0,69942.0,9.129304]
[1722252492389,0.04014266,69943.0,69942.0,9.014924]
[1722252493329,0.04014265,69943.0,69942.0,9.014924]
[1722252494129,0.04014265,69943.0,69942.0,9.129304]
[1722252494332,0.04014265,69943.0,69942.0,9.014924]
[1722252494733,0.0625819,69943.0,69942.0,9.014924]
[1722252495237,0.0625819,69943.0,69942.0,9.129304]
[1722252496324,0.0605819,69943.0,69942.0,9.243684]
[1722252496481,0.0605819,69943.0,69942.0,9.129304]
[1722252497087,0.03814265,69943.0,69942.0,9.129304]
[1722252497284,0.04014273,69943.0,69942.0,9.129304]
[1722252497514,0.03814273,69943.0,69942.0,9.129304]
[1722252498591,0.03814273,69943.0,69942.0,9.358064]
[1722252499028,0.03814273,69943.0,69942.0,9.129304]
[1722252500055,0.03814273,69943.0,69942.0,9.358064]
[1722252500255,0.06058194,69943.0,69942.0,9.358064]
[1722252500597,0.06058177,69943.0,69942.0,9.129304]
[1722252500938,0.06058179,69943.0,69942.0,9.129304]
[1722252501144,0.06058179,69943.0,69942.0,9.358064]
[1722252501383,0.06058179,69943.0,69942.0,9.129304]
[1722252502836,0.06058179,69943.0,69942.0,9.358064]
[1722252504508,0.06058179,69943.0,69942.0,9.129304]
[1722252504681,0.04014258,69943.0,69942.0,9.129304]
[1722252505696,0.04014258,69943.0,69942.0,9.014924]
[1722252505848,0.18004258,69943.0,69942.0,9.014924]
[1722252507100,0.18004257,69943.0,69942.0,9.014924]
[1722252508037,0.20248189,69943.0,69942.0,9.014924]
[1722252508240,0.26686072,69943.0,69942.0,9.014924]
[1722252508387,0.20248189,69943.0,69942.0,9.014924]
[1722252509230,0.18004257,69943.0,69942.0,9.014924]
[1722252509433,0.17504257,69943.0,69942.0,9.014924]
[1722252510221,0.16612867,69943.0,69942.0,9.014924]
[1722252510404,0.17504287,69943.0,69942.0,9.014924]
[1722252512215,0.19748234,69943.0,69942.0,9.014924]
[1722252513651,0.19748235,69943.0,69942.0,9.014924]
[1722252514964,0.2833628,69943.0,69942.0,9.014924]
[1722252516817,0.18856814,69943.0,69942.0,9.014924]
[1722252517014,0.28337604,69943.0,69942.0,9.014924]
[1722252519510,0.30484942,69943.0,69942.0,9.014924]
[1722252520167,0.30486535,69943.0,69942.0,9.014924]
[1722252520840,0.19748259,69943.0,69942.0,9.014924]
[1722252521517,0.30487146,69943.0,69942.0,9.014924]
[1722252523143,0.16497146,69943.0,69942.0,9.014924]
[1722252523369,0.04866814,69943.0,69942.0,9.014924]
[1722252523585,0.16496835,69943.0,69942.0,9.014924]
[1722252523818,0.16296835,69943.0,69942.0,9.091524]
[1722252524031,0.14348939,69943.0,69942.0,9.205904]
[1722252524259,0.0575826,69943.0,69942.0,9.205904]
[1722252526746,0.05758219,69943.0,69942.0,9.205904]
[1722252526953,0.12912574,69943.0,69942.0,9.205904]
[1722252527162,0.12912574,69943.0,69942.0,9.129304]
[1722252527886,0.21503242,69943.0,69942.0,9.129304]
[1722252529835,0.12021169,69943.0,69942.0,9.129304]
[1722252530042,0.21503436,69943.0,69942.0,9.129304]
[1722252530421,0.12021169,69943.0,69942.0,9.129304]
[1722252530638,0.21503404,69943.0,69942.0,9.014924]
[1722252531502,0.14349049,69943.0,69942.0,9.129304]
[1722252532164,0.14349049,69943.0,69942.0,9.014924]
[1722252532846,0.14349048,69943.0,69942.0,9.014924]
[1722252533058,0.14349213,69943.0,69942.0,9.014924]
[1722252533842,0.14349213,69943.0,69942.0,9.129304]
[1722252534025,0.14349213,69943.0,69942.0,9.014924]
[1722252536408,0.14349214,69943.0,69942.0,9.014924]
[1722252539541,0.04866814,69943.0,69942.0,9.014924]
[1722252539748,0.14350584,69943.0,69942.0,9.014924]
[1722252540677,0.14350584,69943.0,69942.0,9.129304]
[1722252541916,0.14434584,69943.0,69942.0,9.129304]
[1722252542132,0.14434636,69943.0,69942.0,9.129304]
[1722252544790,0.14434636,69943.0,69942.0,9.358064]
[1722252545219,0.04950814,69943.0,69942.0,9.358064]
[1722252545429,0.14434853,69943.0,69942.0,9.358064]
[1722252545837,0.14434853,69943.0,69942.0,9.129304]
[1722252546477,0.14434853,69943.0,69942.0,9.014924]
[1722252546847,0.14434853,69943.0,69942.0,9.129304]
[1722252547067,0.14434853,69943.0,69942.0,9.014924]
[1722252547902,0.14434853,69943.0,69942.0,9.129304]
[1722252548535,0.14435263,69943.0,69942.0,9.129304]
[1722252548747,0.14435263,69943.0,69942.0,9.014924]
[1722252549802,0.14435263,69943.0,69942.0,9.129304]
[1722252549955,0.05842221,69943.0,69942.0,9.014924]
[1722252550367,0.03598274,69943.0,69942.0,9.014924]
[1722252552173,0.24912629,69943.0,69942.0,9.014924]
[1722252552385,0.24912661,69943.0,69942.0,9.014924]
[1722252552615,1.04174457,69943.0,69942.0,9.014924]
[1722252552814,1.14159404,69943.0,69942.0,9.014924]
[1722252553422,1.24159404,69943.0,69942.0,9.002924]
[1722252553633,1.38661502,69943.0,69942.0,9.002924]
[1722252553829,1.40713489,69943.0,69942.0,9.003924]
[1722252554460,1.4302353,69943.0,69942.0,9.003924]
[1722252554920,1.37756207,69943.0,69942.0,9.001924]
[1722252555125,1.42839491,69943.0,69942.0,9.001924]
[1722252555279,1.19729552,69943.0,69942.0,9.002924]
[1722252555483,0.82399497,69943.0,69942.0,9.002924]
[1722252555676,0.82399497,69943.0,69942.0,9.001924]
[1722252555677,0.58323797,69943.0,69942.0,9.001924]
[1722252556014,0.7239829,69943.0,69942.0,9.002924]
[1722252556202,0.59523797,69943.0,69942.0,9.002924]
[1722252556504,0.55332187,69943.0,69942.0,9.002924]
[1722252556937,0.55332187,69943.0,69942.0,9.001924]
[1722252557293,0.55432187,69943.0,69942.0,9.001924]
[1722252558288,0.55432071,69943.0,69942.0,9.001924]
[1722252558669,0.56282195,69943.0,69942.0,9.001924]
[1722252560646,0.21968695,69943.0,69942.0,9.001924]
[1722252560872,0.33406495,69943.0,69942.0,9.001924]
[1722252561458,0.33406494,69943.0,69942.0,9.201924]
[1722252561892,0.55390637,69943.0,69942.0,9.201924]
[1722252562093,0.56282194,69943.0,69942.0,9.201924]
[1722252563745,0.56282195,69943.0,69942.0,9.201924]
[1722252564711,0.55390637,69943.0,69942.0,9.201924]
[1722252564912,0.56282195,69943.0,69942.0,9.201924]
[1722252566343,0.54038049,69943.0,69942.0,9.201924]
[1722252566546,0.76913749,69943.0,69942.0,9.201924]
[1722252568143,0.76022191,69943.0,69942.0,9.201924]
[1722252568378,0.76913749,69943.0,69942.0,9.201924]
[1722252569825,0.31162349,69943.0,69942.0,9.201924]
[1722252570027,0.54038049,69943.0,69942.0,9.201924]
[1722252571386,0.54038023,69943.0,69942.0,9.201924]
[1722252571817,0.53146491,69943.0,69942.0,9.201924]
[1722252572004,0.54038023,69943.0,69942.0,9.201924]
[1722252572741,0.39878023,69943.0,69942.0,9.201924]
[1722252572883,0.42122223,69943.0,69942.0,9.201924]
[1722252573287,0.07808723,69943.0,69942.0,9.432724]
[1722252573492,0.16384203,69943.0,69942.0,9.432724]
[1722252573766,0.06958599,69943.0,69942.0,9.432724]
[1722252574629,0.06067067,69943.0,69942.0,9.432724]
[1722252574834,0.06958544,69943.0,69942.0,9.432724]
[1722252575605,0.06958544,69943.0,69942.0,9.284524]
[1722252575777,0.18396344,69943.0,69942.0,9.201924]
[1722252575974,0.06958544,69943.0,69942.0,9.201924]
[1722252576959,0.13390532,69943.0,69942.0,9.201924]
[1722252577326,0.05758544,69943.0,69942.0,9.200924]
[1722252577727,0.22356708,69943.0,69942.0,9.201924]
[1722252578773,0.18296344,69943.0,69942.0,9.201924]
[1722252578972,0.04614344,69943.0,69942.0,9.201924]
[1722252579172,0.16052144,69943.0,69942.0,9.201924]
[1722252580184,0.15952144,69943.0,69942.0,9.201924]
[1722252580387,0.04514344,69943.0,69942.0,9.201924]
[1722252580902,0.15952144,69943.0,69942.0,9.201924]
[1722252581038,0.04514344,69943.0,69942.0,9.201924]
[1722252581241,0.03622867,69943.0,69942.0,9.201924]
[1722252581444,0.0451434,69943.0,69942.0,9.201924]
[1722252581858,0.04514339,69943.0,69942.0,9.201924]
[1722252582258,0.04714339,69943.0,69942.0,9.201924]
[1722252582675,0.04514339,69943.0,69942.0,9.201924]
[1722252583144,0.04714339,69943.0,69942.0,9.201924]
[1722252584543,0.03822867,69943.0,69942.0,9.201924]
[1722252584753,0.04714341,69943.0,69942.0,9.201924]
[1722252585350,0.13292379,69943.0,69942.0,9.201924]
[1722252586097,0.1553644,69943.0,69942.0,9.201924]
[1722252586772,0.1553644,69943.0,69942.0,9.340324]
[1722252586773,0.1533644,69943.0,69942.0,9.340324]
[1722252586973,0.1553644,69943.0,69942.0,9.340324]
[1722252587352,0.13292379,69943.0,69942.0,9.340324]
[1722252587735,0.03822867,69943.0,69942.0,9.340324]
[1722252587944,0.13293454,69943.0,69942.0,9.340324]
[1722252591000,0.03822867,69943.0,69942.0,9.340324]
[1722252591208,0.13294472,69943.0,69942.0,9.340324]
[1722252591614,0.13294858,69943.0,69942.0,9.340324]
[1722252591816,0.13294858,69943.0,69942.0,10.240984]
[1722252591817,0.03627832,69943.0,69942.0,10.240984]
[1722252592023,0.03627832,69943.0,69942.0,10.519744]
[1722252592223,0.00084,69945.0,69944.0,0.621885]
[1722252592424,0.00084,69945.0,69944.0,0.949685]
[1722252592628,0.00084,69945.0,69944.0,1.407193]
[1722252594974,0.00084,69945.0,69944.0,1.403193]
[1722252595194,0.00084,69945.0,69944.0,1.503193]
[1722252595442,0.00019496,69945.0,69944.0,1.503193]
[1722252598482,0.00019496,69945.0,69944.0,1.87504639]
[1722252598598,0.02262895,69945.0,69944.0,1.87504639]
[1722252598804,0.0001,69946.0,69945.0,1.330179]
[1722252599061,0.00084,69957.0,69945.0,1.330179]
[1722252599062,0.00084,69957.0,69956.0,0.488172]
[1722252599363,0.00084,69957.0,69956.0,1.33373475]
[1722252600026,0.00084,69957.0,69956.0,1.256917]
[1722252600214,0.00084,69957.0,69956.0,1.255917]
[1722252600864,0.00584,69957.0,69956.0,1.257917]
[1722252601739,0.00584,69957.0,69956.0,1.307917]
[1722252602054,0.00584,69957.0,69956.0,1.257917]
[1722252602459,0.00584,69957.0,69956.0,1.255917]
[1722252602460,0.00084,69957.0,69956.0,1.255917]
[1722252602655,0.00084,69957.0,69956.0,1.266917]
[1722252602866,0.00084,69957.0,69956.0,0.955602]
[1722252603079,0.00084,69957.0,69956.0,1.042202]
[1722252605626,0.00084,69957.0,69956.0,1.092202]
[1722252605774,0.00084,69957.0,69956.0,1.042202]
[1722252606661,0.00084,69957.0,69956.0,1.092202]
[1722252606870,0.00084,69957.0,69956.0,1.042202]
[1722252608583,0.02327313,69957.0,69956.0,1.328092]
[1722252609304,0.00084,69957.0,69956.0,1.328092]
[1722252611746,0.00084,69957.0,69956.0,1.182992]
[1722252612177,0.00084,69957.0,69956.0,0.642962]
[1722252612365,0.00084,69957.0,69956.0,0.954277]
[1722252612590,0.06344,69957.0,69956.0,0.725562]
[1722252614302,0.06344,69957.0,69956.0,0.954277]
[1722252614507,0.06344,69957.0,69956.0,0.725562]
[1722252614978,0.00084,69957.0,69956.0,0.725562]
[1722252615176,0.00084,69957.0,69956.0,0.642962]
[1722252615370,0.07438355,69957.0,69956.0,0.30089]
[1722252615995,0.13638355,69957.0,69956.0,0.30089]
[1722252616625,0.15881896,69957.0,69956.0,0.30089]
[1722252616961,0.13638355,69957.0,69956.0,0.30089]
[1722252617159,0.33033855,69957.0,69956.0,0.30089]
[1722252617381,0.21598355,69957.0,69956.0,0.30089]
[1722252617753,0.33033855,69957.0,69956.0,0.30089]
[1722252618639,0.21598355,69957.0,69956.0,0.30089]
[1722252620221,0.35277417,69957.0,69956.0,0.30089]
[1722252620429,0.36168693,69957.0,69956.0,0.30089]
[1722252622480,0.81019617,69957.0,69956.0,0.30089]
[1722252622729,1.27280138,69957.0,69956.0,0.30089]
[1722252623157,1.27280291,69957.0,69956.0,0.30089]
[1722252623331,1.28982334,69957.0,69956.0,0.30089]
[1722252623539,1.22570107,69957.0,69956.0,0.30089]
[1722252623741,1.28982718,69957.0,69956.0,0.30089]
[1722252623939,1.28982661,69957.0,69956.0,0.30089]
[1722252624120,1.1902029,69957.0,69956.0,0.30089]
[1722252624324,1.14320819,69957.0,69956.0,0.30089]
[1722252624706,0.84149719,69957.0,69956.0,0.30089]
[1722252624943,0.19817664,69957.0,69956.0,0.28989]
[1722252625166,0.05457664,69957.0,69956.0,0.632962]
[1722252625371,0.02327562,69957.0,69956.0,0.861677]
[1722252625759,0.02327562,69957.0,69956.0,0.632962]
[1722252625879,0.02327562,69957.0,69956.0,0.404247]
[1722252626082,0.00084,69957.0,69956.0,0.632962]
[1722252626282,0.00084,69957.0,69956.0,0.944277]
[1722252626543,0.00084,69957.0,69956.0,0.715562]
[1722252626698,0.00284,69957.0,69956.0,0.487847]
[1722252626906,0.00484,69957.0,69956.0,0.716562]
[1722252627112,0.00284,69957.0,69956.0,0.716562]
[1722252627317,0.00284,69957.0,69956.0,0.633962]
[1722252629393,0.02727459,69957.0,69956.0,0.633962]
[1722252629763,0.02527459,69957.0,69956.0,0.404247]
[1722252629965,0.02527459,69957.0,69956.0,0.632962]
[1722252630303,0.02527459,69957.0,69956.0,0.641962]
[1722252630493,0.02527459,69957.0,69956.0,0.29889]
[1722252631289,0.02527459,69957.0,69956.0,0.29489]
[1722252632501,0.02527459,69957.0,69956.0,0.29589]
[1722252632761,0.02527459,69957.0,69956.0,0.29489]
[1722252632915,0.02327459,69957.0,69956.0,0.29489]
[1722252633077,0.02327459,69957.0,69956.0,0.29589]
[1722252633868,0.02327459,69957.0,69956.0,0.410247]
[1722252634208,0.02327459,69957.0,69956.0,0.29589]
[1722252634394,0.02527459,69957.0,69956.0,0.29589]
[1722252635011,0.02327459,69957.0,69956.0,0.410247]
[1722252635771,0.02527459,69957.0,69956.0,0.29589]
[1722252636704,0.08817459,69957.0,69956.0,0.29589]
[1722252637331,0.11055991,69957.0,69956.0,0.29589]
[1722252637732,0.18210346,69957.0,69956.0,0.29589]
[1722252639221,0.30537076,69957.0,69956.0,0.29589]
[1722252639435,0.23286606,69957.0,69956.0,0.29589]
[1722252639620,0.23287033,69957.0,69956.0,0.29589]
[1722252639945,0.23286982,69957.0,69956.0,0.29589]
[1722252640158,0.16858117,69957.0,69956.0,0.29589]
[1722252640695,0.23286563,69957.0,69956.0,0.29589]
[1722252640909,0.23286619,69957.0,69956.0,0.29589]
[1722252641106,0.16858117,69957.0,69956.0,0.296814]